[Event "Titled Tuesday Blitz July 13 2021"]
[White "Flores Quillas, Diego Saul Rodri"]
[Black "Lazavik, Denis"]
[WhiteFideId "3822508"]
[BlackFideId "13515110"]
[WhiteElo "2071"]
[BlackElo "2436"]
[Result "0-1"]
[Round "05"]
[TimeControl "180+1"]
[Date "2021.07.13"]
[WhiteClock "0:00:04"]
[BlackClock "0:00:28"]

1. e4 {[%clk 0:02:49]}  e5 {[%clk 0:02:56]} 2. Nf3 {[%clk 0:02:46]}  Nc6 {[%clk 0:02:56]} 3. c3 {[%clk 0:02:46]}  d5 {[%clk 0:02:53]} 4. Qa4 {[%clk 0:02:41]}  f6 {[%clk 0:02:42]} 5. d3 {[%clk 0:02:40]}  Ne7 {[%clk 0:02:35]} 6. Nbd2 {[%clk 0:02:38]}  g5 {[%clk 0:02:34]} 7. Be2 {[%clk 0:02:28]}  Bg7 {[%clk 0:02:34]} 8. b4 {[%clk 0:02:22]}  O-O {[%clk 0:02:25]} 9. b5 {[%clk 0:02:13]}  Nb8 {[%clk 0:02:24]} 10. Bb2 {[%clk 0:02:11]}  Nd7 {[%clk 0:02:21]} 11. Qc2 {[%clk 0:02:07]}  Nc5 {[%clk 0:02:15]} 12. O-O {[%clk 0:02:02]}  Ne6 {[%clk 0:02:09]} 13. g3 {[%clk 0:01:58]}  dxe4 {[%clk 0:02:03]} 14. dxe4 {[%clk 0:01:58]}  Ng6 {[%clk 0:02:01]} 15. Nc4 {[%clk 0:01:52]}  g4 {[%clk 0:01:49]} 16. Nfd2 {[%clk 0:01:49]}  h5 {[%clk 0:01:49]} 17. Rfd1 {[%clk 0:01:46]}  Qe8 {[%clk 0:01:48]} 18. Ne3 {[%clk 0:01:45]}  Ng5 {[%clk 0:01:46]} 19. Ba3 {[%clk 0:01:02]}  Rf7 {[%clk 0:01:45]} 20. Bc4 {[%clk 0:01:01]}  Be6 {[%clk 0:01:45]} 21. Qb3 {[%clk 0:00:58]}  Bf8 {[%clk 0:01:40]} 22. Bxe6 {[%clk 0:00:58]}  Qxe6 {[%clk 0:01:38]} 23. Qxe6 {[%clk 0:00:56]}  Nxe6 {[%clk 0:01:39]} 24. Bxf8 {[%clk 0:00:56]}  Kxf8 {[%clk 0:01:37]} 25. Nb3 {[%clk 0:00:55]}  Ke8 {[%clk 0:01:31]} 26. Nd5 {[%clk 0:00:40]}  Rc8 {[%clk 0:01:22]} 27. Nb4 {[%clk 0:00:24]}  Ng5 {[%clk 0:01:14]} 28. Nd2 {[%clk 0:00:19]}  Rd8 {[%clk 0:01:12]} 29. Nc4 {[%clk 0:00:15]}  Nxe4 {[%clk 0:01:08]} 30. Rxd8+ {[%clk 0:00:11]}  Kxd8 {[%clk 0:01:07]} 31. Nd5 {[%clk 0:00:11]}  Rd7 {[%clk 0:01:03]} 32. Nce3 {[%clk 0:00:11]}  c6 {[%clk 0:01:00]} 33. bxc6 {[%clk 0:00:10]}  bxc6 {[%clk 0:01:01]} 34. Nb4 {[%clk 0:00:11]}  Kc7 {[%clk 0:00:59]} 35. c4 {[%clk 0:00:09]}  a5 {[%clk 0:00:56]} 36. Nbc2 {[%clk 0:00:06]}  Nf8 {[%clk 0:00:53]} 37. Kg2 {[%clk 0:00:02]}  Ne6 {[%clk 0:00:53]} 38. Rd1 {[%clk 0:00:02]}  Rxd1 {[%clk 0:00:52]} 39. Nxd1 {[%clk 0:00:02]}  Kd6 {[%clk 0:00:53]} 40. f3 {[%clk 0:00:03]}  N4g5 {[%clk 0:00:51]} 41. fxg4 {[%clk 0:00:03]}  hxg4 {[%clk 0:00:52]} 42. Nde3 {[%clk 0:00:04]}  Nd4 {[%clk 0:00:31]} 43. Nxd4 {[%clk 0:00:03]}  exd4 {[%clk 0:00:32]} 44. Nxg4 {[%clk 0:00:04]}  f5 {[%clk 0:00:32]} 45. h4 {[%clk 0:00:02]}  fxg4 {[%clk 0:00:29]} 46. hxg5 {[%clk 0:00:01]}  c5 {[%clk 0:00:30]} 47. Kf2 {[%clk 0:00:01]}  Ke6 {[%clk 0:00:30]} 48. Ke2 {[%clk 0:00:02]}  Kf5 {[%clk 0:00:31]} 49. Kd2 {[%clk 0:00:02]}  Kxg5 {[%clk 0:00:28]} 50. Ke2 {[%clk 0:00:03]}  Kf5 {[%clk 0:00:29]} 51. Kf2 {[%clk 0:00:03]}  Ke4 {[%clk 0:00:28]} 52. Ke2 {[%clk 0:00:04]} 0-1


[Site "https://www.chess.com"]

[Event "Titled Tuesday Blitz July 13 2021"]
[White "Gelman, Alexander"]
[Black "Ashwin, Jayaram"]
[WhiteFideId "4118316"]
[BlackFideId "5018137"]
[WhiteElo "2375"]
[BlackElo "2461"]
[Result "1-0"]
[Round "05"]
[TimeControl "180+1"]
[Date "2021.07.13"]
[WhiteClock "0:00:16"]
[BlackClock "0:00:16"]

1. d4 {[%clk 0:03:00]}  Nf6 {[%clk 0:02:58]} 2. Nc3 {[%clk 0:03:00]}  d5 {[%clk 0:02:58]} 3. Bf4 {[%clk 0:03:00]}  a6 {[%clk 0:02:58]} 4. e3 {[%clk 0:03:00]}  c5 {[%clk 0:02:56]} 5. Nf3 {[%clk 0:03:00]}  Nc6 {[%clk 0:02:56]} 6. Ne5 {[%clk 0:03:01]}  e6 {[%clk 0:02:52]} 7. Nxc6 {[%clk 0:02:54]}  bxc6 {[%clk 0:02:52]} 8. Na4 {[%clk 0:02:55]}  cxd4 {[%clk 0:02:36]} 9. exd4 {[%clk 0:02:56]}  Be7 {[%clk 0:02:34]} 10. Bd3 {[%clk 0:02:53]}  O-O {[%clk 0:02:34]} 11. c3 {[%clk 0:02:42]}  a5 {[%clk 0:02:32]} 12. Qe2 {[%clk 0:02:40]}  Nd7 {[%clk 0:02:31]} 13. h4 {[%clk 0:02:11]}  c5 {[%clk 0:02:29]} 14. h5 {[%clk 0:02:08]}  cxd4 {[%clk 0:02:26]} 15. cxd4 {[%clk 0:02:08]}  Bb4+ {[%clk 0:02:21]} 16. Kf1 {[%clk 0:02:08]}  Nb6 {[%clk 0:02:02]} 17. Nc5 {[%clk 0:01:59]}  Nd7 {[%clk 0:01:52]} 18. Rc1 {[%clk 0:01:47]}  Bxc5 {[%clk 0:01:38]} 19. dxc5 {[%clk 0:01:47]}  e5 {[%clk 0:01:38]} 20. Bd2 {[%clk 0:01:13]}  f6 {[%clk 0:01:21]} 21. Rh3 {[%clk 0:00:55]}  Nb8 {[%clk 0:01:11]} 22. Rg3 {[%clk 0:00:54]}  Ba6 {[%clk 0:01:08]} 23. c6 {[%clk 0:00:42]}  Bxd3 {[%clk 0:00:50]} 24. Qxd3 {[%clk 0:00:43]}  Ra7 {[%clk 0:00:36]} 25. a3 {[%clk 0:00:32]}  a4 {[%clk 0:00:27]} 26. Bb4 {[%clk 0:00:29]}  Rff7 {[%clk 0:00:24]} 27. Qf5 {[%clk 0:00:25]}  Rfc7 {[%clk 0:00:18]} 28. Qe6+ {[%clk 0:00:19]}  Kh8 {[%clk 0:00:18]} 29. h6 {[%clk 0:00:19]}  gxh6 {[%clk 0:00:17]} 30. Be7 {[%clk 0:00:15]}  Rxe7 {[%clk 0:00:16]} 31. Qxf6+ {[%clk 0:00:16]} 1-0


[Site "https://www.chess.com"]

[Event "Titled Tuesday Blitz July 13 2021"]
[White "Hoffmann, Asa"]
[Black "Chen, Justin"]
[WhiteFideId "2001470"]
[BlackFideId "2098199"]
[WhiteElo "2117"]
[BlackElo "2652"]
[Result "1-0"]
[Round "05"]
[TimeControl "180+1"]
[Date "2021.07.13"]
[WhiteClock "0:00:51"]
[BlackClock "0:00:03"]

1. d4 {[%clk 0:02:53]}  d5 {[%clk 0:02:59]} 2. Bg5 {[%clk 0:02:50]}  Bf5 {[%clk 0:02:59]} 3. c4 {[%clk 0:02:47]}  c6 {[%clk 0:02:57]} 4. Nc3 {[%clk 0:02:47]}  h6 {[%clk 0:02:35]} 5. Bh4 {[%clk 0:02:44]}  Qb6 {[%clk 0:02:27]} 6. Qd2 {[%clk 0:02:36]}  e6 {[%clk 0:02:26]} 7. e3 {[%clk 0:02:35]}  Nd7 {[%clk 0:02:25]} 8. Nf3 {[%clk 0:02:34]}  Ngf6 {[%clk 0:02:25]} 9. a3 {[%clk 0:02:29]}  Ne4 {[%clk 0:02:13]} 10. Nxe4 {[%clk 0:02:23]}  Bxe4 {[%clk 0:02:12]} 11. Be2 {[%clk 0:02:21]}  dxc4 {[%clk 0:01:52]} 12. O-O {[%clk 0:02:18]}  Bd6 {[%clk 0:01:48]} 13. Bg3 {[%clk 0:02:12]}  Bxg3 {[%clk 0:01:47]} 14. hxg3 {[%clk 0:02:12]}  O-O {[%clk 0:01:27]} 15. Bxc4 {[%clk 0:02:10]}  Rfd8 {[%clk 0:01:26]} 16. Qc3 {[%clk 0:02:05]}  Rac8 {[%clk 0:01:22]} 17. Rad1 {[%clk 0:02:03]}  c5 {[%clk 0:01:18]} 18. d5 {[%clk 0:02:02]}  exd5 {[%clk 0:01:16]} 19. Bxd5 {[%clk 0:02:01]}  Bxd5 {[%clk 0:01:16]} 20. Rxd5 {[%clk 0:02:01]}  Nf6 {[%clk 0:01:17]} 21. Rxd8+ {[%clk 0:01:50]}  Qxd8 {[%clk 0:01:17]} 22. Rc1 {[%clk 0:01:46]}  b6 {[%clk 0:01:15]} 23. Qc4 {[%clk 0:01:41]}  Qd6 {[%clk 0:01:11]} 24. Qf4 {[%clk 0:01:39]}  Rd8 {[%clk 0:01:10]} 25. Qxd6 {[%clk 0:01:32]}  Rxd6 {[%clk 0:01:11]} 26. Kf1 {[%clk 0:01:31]}  Kf8 {[%clk 0:01:10]} 27. Ke2 {[%clk 0:01:31]}  Ne4 {[%clk 0:01:10]} 28. Rc2 {[%clk 0:01:27]}  Ke7 {[%clk 0:01:09]} 29. Ne5 {[%clk 0:01:26]}  f6 {[%clk 0:01:05]} 30. Nc4 {[%clk 0:01:25]}  Rd7 {[%clk 0:01:06]} 31. g4 {[%clk 0:01:25]}  Ke6 {[%clk 0:01:03]} 32. f3 {[%clk 0:01:25]}  Nd6 {[%clk 0:01:04]} 33. Nxd6 {[%clk 0:01:21]}  Kxd6 {[%clk 0:01:03]} 34. f4 {[%clk 0:01:18]}  Kc6 {[%clk 0:00:57]} 35. g3 {[%clk 0:01:15]}  b5 {[%clk 0:00:57]} 36. Kf3 {[%clk 0:01:12]}  c4 {[%clk 0:00:53]} 37. a4 {[%clk 0:01:10]}  a6 {[%clk 0:00:52]} 38. axb5+ {[%clk 0:01:10]}  axb5 {[%clk 0:00:53]} 39. Ke4 {[%clk 0:01:10]}  Kc5 {[%clk 0:00:45]} 40. Kf5 {[%clk 0:01:06]}  b4 {[%clk 0:00:39]} 41. e4 {[%clk 0:01:04]}  b3 {[%clk 0:00:38]} 42. Re2 {[%clk 0:00:59]}  Kb4 {[%clk 0:00:26]} 43. e5 {[%clk 0:00:58]}  fxe5 {[%clk 0:00:25]} 44. fxe5 {[%clk 0:00:58]}  c3 {[%clk 0:00:18]} 45. bxc3+ {[%clk 0:00:58]}  Kxc3 {[%clk 0:00:18]} 46. e6 {[%clk 0:00:58]}  Re7 {[%clk 0:00:17]} 47. Ke5 {[%clk 0:00:54]}  b2 {[%clk 0:00:15]} 48. Re1 {[%clk 0:00:53]}  Kc2 {[%clk 0:00:03]} 49. Kd6 {[%clk 0:00:53]}  Re8 {[%clk 0:00:02]} 50. e7 {[%clk 0:00:53]}  b1=Q {[%clk 0:00:01]} 51. Rxb1 {[%clk 0:00:52]}  Kxb1 {[%clk 0:00:02]} 52. Kd7 {[%clk 0:00:52]}  Ra8 {[%clk 0:00:03]} 53. e8=Q {[%clk 0:00:52]}  Rxe8 {[%clk 0:00:03]} 54. Kxe8 {[%clk 0:00:52]}  Kc2 {[%clk 0:00:04]} 55. Kf7 {[%clk 0:00:52]}  g5 {[%clk 0:00:03]} 56. Kg6 {[%clk 0:00:51]}  Kd3 {[%clk 0:00:03]} 57. Kxh6 {[%clk 0:00:51]} 1-0


[Site "https://www.chess.com"]

[Event "Titled Tuesday Blitz July 13 2021"]
[White "Hryshchenko, Kamila"]
[Black "Rozhkov, Viacheslav"]
[WhiteFideId "14147491"]
[BlackFideId "4181484"]
[WhiteElo "1966"]
[BlackElo "2324"]
[Result "1-0"]
[Round "05"]
[TimeControl "180+1"]
[Date "2021.07.13"]
[WhiteClock "0:00:59"]
[BlackClock "0:00:05"]

1. e4 {[%clk 0:03:00]}  c5 {[%clk 0:03:00]} 2. Nf3 {[%clk 0:03:00]}  d6 {[%clk 0:03:00]} 3. Bb5+ {[%clk 0:03:01]}  Nd7 {[%clk 0:02:59]} 4. Bd3 {[%clk 0:03:00]}  a6 {[%clk 0:02:58]} 5. O-O {[%clk 0:02:59]}  e6 {[%clk 0:02:53]} 6. c3 {[%clk 0:02:59]}  b5 {[%clk 0:02:51]} 7. a4 {[%clk 0:02:58]}  Bb7 {[%clk 0:02:51]} 8. axb5 {[%clk 0:02:56]}  axb5 {[%clk 0:02:51]} 9. Rxa8 {[%clk 0:02:54]}  Bxa8 {[%clk 0:02:48]} 10. Re1 {[%clk 0:02:51]}  Ngf6 {[%clk 0:02:44]} 11. Bxb5 {[%clk 0:02:48]}  Bxe4 {[%clk 0:02:37]} 12. d3 {[%clk 0:02:48]}  Bb7 {[%clk 0:02:33]} 13. Ng5 {[%clk 0:02:40]}  Qb6 {[%clk 0:02:21]} 14. Qa4 {[%clk 0:02:38]}  h6 {[%clk 0:02:03]} 15. Ne4 {[%clk 0:02:32]}  Qc7 {[%clk 0:01:28]} 16. Bf4 {[%clk 0:02:25]}  Be7 {[%clk 0:01:09]} 17. Nbd2 {[%clk 0:02:24]}  O-O {[%clk 0:01:01]} 18. Nc4 {[%clk 0:02:13]}  e5 {[%clk 0:00:34]} 19. Bc1 {[%clk 0:02:06]}  Nxe4 {[%clk 0:00:27]} 20. dxe4 {[%clk 0:02:05]}  Nf6 {[%clk 0:00:23]} 21. Nd2 {[%clk 0:02:00]}  Ra8 {[%clk 0:00:19]} 22. Qb3 {[%clk 0:01:57]}  Ra1 {[%clk 0:00:18]} 23. Bc4 {[%clk 0:01:51]}  Bf8 {[%clk 0:00:18]} 24. f3 {[%clk 0:01:46]}  Bc6 {[%clk 0:00:18]} 25. Qc2 {[%clk 0:01:35]}  g6 {[%clk 0:00:14]} 26. Nf1 {[%clk 0:01:35]}  Nh5 {[%clk 0:00:14]} 27. Bd2 {[%clk 0:01:30]}  Qa7 {[%clk 0:00:12]} 28. Qb3 {[%clk 0:01:16]}  Rxe1 {[%clk 0:00:12]} 29. Bxe1 {[%clk 0:01:17]}  Nf4 {[%clk 0:00:11]} 30. Bf2 {[%clk 0:01:12]}  Kg7 {[%clk 0:00:10]} 31. g3 {[%clk 0:01:12]}  Nh3+ {[%clk 0:00:09]} 32. Kg2 {[%clk 0:01:12]}  Nxf2 {[%clk 0:00:10]} 33. Kxf2 {[%clk 0:01:13]}  Qd7 {[%clk 0:00:09]} 34. Bd5 {[%clk 0:01:06]}  f5 {[%clk 0:00:08]} 35. Ne3 {[%clk 0:01:03]}  Ba4 {[%clk 0:00:07]} 36. Qb8 {[%clk 0:01:01]}  f4 {[%clk 0:00:07]} 37. Nc4 {[%clk 0:00:59]}  fxg3+ {[%clk 0:00:05]} 38. hxg3 {[%clk 0:01:00]}  Bc6 {[%clk 0:00:05]} 39. Nb6 {[%clk 0:00:59]}  Bxd5 {[%clk 0:00:05]} 40. Nxd7 {[%clk 0:00:59]} 1-0


[Site "https://www.chess.com"]

[Event "Titled Tuesday Blitz July 13 2021"]
[White "Iskusnyh, Sergei"]
[Black "Mikaelyan, Arman"]
[WhiteFideId "4120027"]
[BlackFideId "13304852"]
[WhiteElo "2492"]
[BlackElo "2461"]
[Result "1-0"]
[Round "05"]
[TimeControl "180+1"]
[Date "2021.07.13"]
[WhiteClock "0:00:33"]
[BlackClock "0:00:05"]

1. d4 {[%clk 0:03:00]}  Nf6 {[%clk 0:02:59]} 2. c4 {[%clk 0:03:00]}  g6 {[%clk 0:02:58]} 3. g3 {[%clk 0:03:00]}  Bg7 {[%clk 0:02:58]} 4. Bg2 {[%clk 0:03:01]}  c5 {[%clk 0:02:59]} 5. dxc5 {[%clk 0:02:59]}  Qa5+ {[%clk 0:02:56]} 6. Nc3 {[%clk 0:02:57]}  O-O {[%clk 0:02:51]} 7. Bd2 {[%clk 0:02:45]}  Qxc5 {[%clk 0:02:49]} 8. Rc1 {[%clk 0:02:43]}  Nc6 {[%clk 0:02:33]} 9. b3 {[%clk 0:02:26]}  d6 {[%clk 0:02:29]} 10. Nf3 {[%clk 0:02:25]}  Ng4 {[%clk 0:01:48]} 11. O-O {[%clk 0:02:19]}  Qh5 {[%clk 0:01:47]} 12. Nd5 {[%clk 0:02:12]}  e5 {[%clk 0:01:02]} 13. h3 {[%clk 0:01:52]}  Nh6 {[%clk 0:00:56]} 14. Ng5 {[%clk 0:01:12]}  Nd4 {[%clk 0:00:52]} 15. e3 {[%clk 0:00:47]}  Ne2+ {[%clk 0:00:30]} 16. Kh1 {[%clk 0:00:47]}  Nxc1 {[%clk 0:00:26]} 17. Qxh5 {[%clk 0:00:46]}  gxh5 {[%clk 0:00:26]} 18. Rxc1 {[%clk 0:00:45]}  f6 {[%clk 0:00:20]} 19. Ne4 {[%clk 0:00:43]}  Rd8 {[%clk 0:00:20]} 20. Bb4 {[%clk 0:00:40]}  Nf7 {[%clk 0:00:17]} 21. Nexf6+ {[%clk 0:00:37]}  Bxf6 {[%clk 0:00:15]} 22. Nxf6+ {[%clk 0:00:37]}  Kg7 {[%clk 0:00:16]} 23. Nxh5+ {[%clk 0:00:36]}  Kh6 {[%clk 0:00:15]} 24. g4 {[%clk 0:00:36]}  a5 {[%clk 0:00:15]} 25. Bd2 {[%clk 0:00:35]}  a4 {[%clk 0:00:09]} 26. b4 {[%clk 0:00:34]}  a3 {[%clk 0:00:08]} 27. f4 {[%clk 0:00:34]}  Ra4 {[%clk 0:00:05]} 28. f5 {[%clk 0:00:33]} 1-0


[Site "https://www.chess.com"]

[Event "Titled Tuesday Blitz July 13 2021"]
[White "Khusnutdinov, Rustam"]
[Black "Tejedor Fuente, Enrique"]
[WhiteFideId "13701703"]
[BlackFideId "2299100"]
[WhiteElo "2571"]
[BlackElo "2535"]
[Result "1-0"]
[Round "05"]
[TimeControl "180+1"]
[Date "2021.07.13"]
[WhiteClock "0:00:55"]
[BlackClock "0:00:02"]

1. d4 {[%clk 0:02:46]}  d5 {[%clk 0:02:59]} 2. c4 {[%clk 0:02:46]}  e6 {[%clk 0:02:57]} 3. Nf3 {[%clk 0:02:43]}  Nf6 {[%clk 0:02:57]} 4. g3 {[%clk 0:02:44]}  Bb4+ {[%clk 0:02:56]} 5. Bd2 {[%clk 0:02:44]}  Bxd2+ {[%clk 0:02:50]} 6. Qxd2 {[%clk 0:02:44]}  O-O {[%clk 0:02:50]} 7. Bg2 {[%clk 0:02:45]}  Ne4 {[%clk 0:02:51]} 8. Qc2 {[%clk 0:02:44]}  c6 {[%clk 0:02:51]} 9. O-O {[%clk 0:02:43]}  b6 {[%clk 0:02:51]} 10. Nbd2 {[%clk 0:02:38]}  Nxd2 {[%clk 0:02:51]} 11. Nxd2 {[%clk 0:02:36]}  Bb7 {[%clk 0:02:50]} 12. e4 {[%clk 0:02:35]}  dxc4 {[%clk 0:02:49]} 13. Nxc4 {[%clk 0:02:29]}  Qxd4 {[%clk 0:02:48]} 14. Rfd1 {[%clk 0:02:26]}  Qc5 {[%clk 0:02:47]} 15. Rac1 {[%clk 0:02:20]}  Na6 {[%clk 0:02:41]} 16. Nd6 {[%clk 0:02:07]}  Qxc2 {[%clk 0:02:39]} 17. Rxc2 {[%clk 0:02:08]}  Rab8 {[%clk 0:02:39]} 18. e5 {[%clk 0:02:04]}  Rfd8 {[%clk 0:02:10]} 19. a3 {[%clk 0:02:02]}  c5 {[%clk 0:02:03]} 20. Rcd2 {[%clk 0:01:57]}  Bxg2 {[%clk 0:02:02]} 21. Kxg2 {[%clk 0:01:58]}  Nc7 {[%clk 0:01:55]} 22. Nxf7 {[%clk 0:01:53]}  Rd5 {[%clk 0:01:07]} 23. Rxd5 {[%clk 0:01:52]}  exd5 {[%clk 0:01:06]} 24. Nd6 {[%clk 0:01:48]}  d4 {[%clk 0:00:59]} 25. f4 {[%clk 0:01:48]}  Kf8 {[%clk 0:00:49]} 26. Kf3 {[%clk 0:01:47]}  Ke7 {[%clk 0:00:46]} 27. Ke4 {[%clk 0:01:47]}  h5 {[%clk 0:00:45]} 28. f5 {[%clk 0:01:41]}  Ne8 {[%clk 0:00:39]} 29. Nc4 {[%clk 0:01:32]}  Rc8 {[%clk 0:00:39]} 30. a4 {[%clk 0:01:26]}  Nc7 {[%clk 0:00:35]} 31. Nd6 {[%clk 0:01:25]}  Rd8 {[%clk 0:00:34]} 32. b4 {[%clk 0:01:21]}  Na6 {[%clk 0:00:24]} 33. bxc5 {[%clk 0:01:17]}  Nxc5+ {[%clk 0:00:24]} 34. Kxd4 {[%clk 0:01:14]}  Nb7 {[%clk 0:00:19]} 35. Kc4 {[%clk 0:01:06]}  Nxd6+ {[%clk 0:00:16]} 36. Rxd6 {[%clk 0:01:07]}  Rxd6 {[%clk 0:00:02]} 37. exd6+ {[%clk 0:01:08]}  Kxd6 {[%clk 0:00:03]} 38. Kb5 {[%clk 0:01:08]}  Kc7 {[%clk 0:00:02]} 39. Ka6 {[%clk 0:01:09]}  Kc6 {[%clk 0:00:01]} 40. h3 {[%clk 0:01:02]}  Kc5 {[%clk 0:00:01]} 41. g4 {[%clk 0:00:59]}  h4 {[%clk 0:00:01]} 42. g5 {[%clk 0:00:54]}  Kd6 {[%clk 0:00:01]} 43. Kxa7 {[%clk 0:00:53]}  Ke5 {[%clk 0:00:02]} 44. Kxb6 {[%clk 0:00:53]}  Kxf5 {[%clk 0:00:02]} 45. a5 {[%clk 0:00:54]}  Kf4 {[%clk 0:00:01]} 46. a6 {[%clk 0:00:54]}  Kg3 {[%clk 0:00:02]} 47. a7 {[%clk 0:00:55]}  Kxh3 {[%clk 0:00:03]} 48. a8=Q {[%clk 0:00:55]}  Kh2 {[%clk 0:00:03]} 49. Qf3 {[%clk 0:00:55]}  h3 {[%clk 0:00:02]} 50. g6 {[%clk 0:00:55]}  Kg1 {[%clk 0:00:02]} 1-0


[Site "https://www.chess.com"]

[Event "Titled Tuesday Blitz July 13 2021"]
[White "Krivonosov, Oleg"]
[Black "Deviprasath, Sharvesh"]
[WhiteFideId "11600349"]
[BlackFideId "30938228"]
[WhiteElo "2469"]
[BlackElo "2102"]
[Result "1-0"]
[Round "05"]
[TimeControl "180+1"]
[Date "2021.07.13"]
[WhiteClock "0:01:36"]
[BlackClock "0:00:32"]

1. Nf3 {[%clk 0:03:00]}  Nf6 {[%clk 0:03:00]} 2. c4 {[%clk 0:03:00]}  g6 {[%clk 0:03:01]} 3. Nc3 {[%clk 0:02:59]}  Bg7 {[%clk 0:03:01]} 4. e4 {[%clk 0:02:59]}  O-O {[%clk 0:03:02]} 5. d4 {[%clk 0:02:59]}  d6 {[%clk 0:03:03]} 6. Be2 {[%clk 0:02:59]}  Nbd7 {[%clk 0:03:03]} 7. O-O {[%clk 0:02:58]}  e5 {[%clk 0:03:04]} 8. Re1 {[%clk 0:02:55]}  Re8 {[%clk 0:02:54]} 9. Bf1 {[%clk 0:02:54]}  a6 {[%clk 0:02:37]} 10. Rb1 {[%clk 0:02:50]}  exd4 {[%clk 0:02:29]} 11. Nxd4 {[%clk 0:02:51]}  Nc5 {[%clk 0:02:29]} 12. f3 {[%clk 0:02:48]}  Nh5 {[%clk 0:02:26]} 13. Be3 {[%clk 0:02:48]}  Be5 {[%clk 0:02:22]} 14. Qd2 {[%clk 0:02:48]}  Qh4 {[%clk 0:02:20]} 15. g3 {[%clk 0:02:48]}  Nxg3 {[%clk 0:02:20]} 16. hxg3 {[%clk 0:02:48]}  Bxg3 {[%clk 0:02:21]} 17. Re2 {[%clk 0:02:23]}  Re5 {[%clk 0:02:19]} 18. Rh2 {[%clk 0:02:20]}  Bxh2+ {[%clk 0:01:08]} 19. Qxh2 {[%clk 0:02:21]}  Qd8 {[%clk 0:01:09]} 20. Qg3 {[%clk 0:02:07]}  Bd7 {[%clk 0:00:52]} 21. Rd1 {[%clk 0:02:03]}  b5 {[%clk 0:00:39]} 22. b4 {[%clk 0:01:50]}  Ne6 {[%clk 0:00:35]} 23. Nxe6 {[%clk 0:01:49]}  Bxe6 {[%clk 0:00:32]} 24. c5 {[%clk 0:01:36]} 1-0


[Site "https://www.chess.com"]

[Event "Titled Tuesday Blitz July 13 2021"]
[White "Le, Tuan Minh"]
[Black "Nakamura, Hikaru"]
[WhiteFideId "12401153"]
[BlackFideId "2016192"]
[WhiteElo "2929"]
[BlackElo "3229"]
[Result "1/2-1/2"]
[Round "05"]
[TimeControl "180+1"]
[Date "2021.07.13"]
[WhiteClock "0:01:15"]
[BlackClock "0:00:58"]

1. d4 {[%clk 0:03:00]}  f5 {[%clk 0:02:52]} 2. Nc3 {[%clk 0:02:57]}  Nf6 {[%clk 0:02:51]} 3. Bg5 {[%clk 0:02:58]}  d5 {[%clk 0:02:51]} 4. Bxf6 {[%clk 0:02:58]}  exf6 {[%clk 0:02:51]} 5. e3 {[%clk 0:02:59]}  c6 {[%clk 0:02:51]} 6. Bd3 {[%clk 0:02:59]}  Bd6 {[%clk 0:02:51]} 7. Qf3 {[%clk 0:02:56]}  g6 {[%clk 0:02:50]} 8. Nge2 {[%clk 0:02:56]}  Nd7 {[%clk 0:02:49]} 9. h4 {[%clk 0:02:52]}  h5 {[%clk 0:02:43]} 10. Nf4 {[%clk 0:02:49]}  Nf8 {[%clk 0:02:41]} 11. O-O-O {[%clk 0:02:47]}  Be6 {[%clk 0:02:37]} 12. Nxe6 {[%clk 0:02:39]}  Nxe6 {[%clk 0:02:37]} 13. Ne2 {[%clk 0:02:40]}  b5 {[%clk 0:02:30]} 14. g3 {[%clk 0:02:38]}  Kf7 {[%clk 0:01:59]} 15. Nf4 {[%clk 0:02:37]}  Nc7 {[%clk 0:01:44]} 16. Rdg1 {[%clk 0:02:24]}  Bxf4 {[%clk 0:01:41]} 17. gxf4 {[%clk 0:02:23]}  Rh6 {[%clk 0:01:38]} 18. Rg3 {[%clk 0:02:19]}  Ne8 {[%clk 0:01:34]} 19. Rhg1 {[%clk 0:02:14]}  Nd6 {[%clk 0:01:34]} 20. Qg2 {[%clk 0:01:37]}  Qg8 {[%clk 0:01:34]} 21. Be2 {[%clk 0:01:35]}  Ne4 {[%clk 0:01:28]} 22. Rh3 {[%clk 0:01:16]}  Re8 {[%clk 0:01:22]} 23. Bf3 {[%clk 0:01:16]}  Nd6 {[%clk 0:01:14]} 24. Rg3 {[%clk 0:01:15]}  Ne4 {[%clk 0:01:14]} 25. Rh3 {[%clk 0:01:14]}  Nd6 {[%clk 0:00:58]} 26. Rg3 {[%clk 0:01:14]}  Ne4 {[%clk 0:00:58]} 27. Rh3 {[%clk 0:01:15]} 1/2-1/2


[Site "https://www.chess.com"]

[Event "Titled Tuesday Blitz July 13 2021"]
[White "Maghsoodloo, Parham"]
[Black "Popilski, Gil"]
[WhiteFideId "12539929"]
[BlackFideId "2809060"]
[WhiteElo "2601"]
[BlackElo "2537"]
[Result "0-1"]
[Round "05"]
[TimeControl "180+1"]
[Date "2021.07.13"]
[WhiteClock "0:00:21"]
[BlackClock "0:00:14"]

1. d4 {[%clk 0:03:00]}  Nf6 {[%clk 0:02:59]} 2. Nf3 {[%clk 0:02:53]}  g6 {[%clk 0:02:51]} 3. Bg5 {[%clk 0:02:21]}  Bg7 {[%clk 0:02:49]} 4. c3 {[%clk 0:02:21]}  d6 {[%clk 0:02:44]} 5. Nbd2 {[%clk 0:02:21]}  O-O {[%clk 0:02:36]} 6. e4 {[%clk 0:02:19]}  c5 {[%clk 0:02:33]} 7. dxc5 {[%clk 0:02:03]}  dxc5 {[%clk 0:02:34]} 8. h3 {[%clk 0:02:03]}  Nc6 {[%clk 0:02:32]} 9. Bc4 {[%clk 0:02:03]}  Qc7 {[%clk 0:02:23]} 10. O-O {[%clk 0:02:02]}  Na5 {[%clk 0:02:05]} 11. Be2 {[%clk 0:02:01]}  Be6 {[%clk 0:01:41]} 12. Qc1 {[%clk 0:01:57]}  Nh5 {[%clk 0:01:35]} 13. Re1 {[%clk 0:01:56]}  Nf4 {[%clk 0:01:23]} 14. Bf1 {[%clk 0:01:51]}  Rad8 {[%clk 0:01:22]} 15. Nc4 {[%clk 0:01:42]}  Nxh3+ {[%clk 0:01:17]} 16. gxh3 {[%clk 0:01:42]}  Nxc4 {[%clk 0:01:17]} 17. Bh6 {[%clk 0:01:34]}  Ne5 {[%clk 0:01:14]} 18. Nxe5 {[%clk 0:01:30]}  Qxe5 {[%clk 0:01:12]} 19. Bxg7 {[%clk 0:01:28]}  Kxg7 {[%clk 0:01:11]} 20. f4 {[%clk 0:01:28]}  Qh5 {[%clk 0:01:10]} 21. Qe3 {[%clk 0:01:29]}  b6 {[%clk 0:01:06]} 22. a4 {[%clk 0:01:28]}  Qh4 {[%clk 0:01:01]} 23. Kh2 {[%clk 0:01:24]}  Bc8 {[%clk 0:00:55]} 24. a5 {[%clk 0:01:24]}  Rd6 {[%clk 0:00:50]} 25. axb6 {[%clk 0:01:21]}  axb6 {[%clk 0:00:49]} 26. e5 {[%clk 0:01:14]}  Rd7 {[%clk 0:00:41]} 27. Bb5 {[%clk 0:01:08]}  Rdd8 {[%clk 0:00:23]} 28. Bd3 {[%clk 0:00:45]}  Bxh3 {[%clk 0:00:20]} 29. Qxh3 {[%clk 0:00:34]}  Qxh3+ {[%clk 0:00:16]} 30. Kxh3 {[%clk 0:00:35]}  Rxd3+ {[%clk 0:00:17]} 31. Kg4 {[%clk 0:00:34]}  Rd2 {[%clk 0:00:17]} 32. Ra7 {[%clk 0:00:33]}  e6 {[%clk 0:00:16]} 33. b4 {[%clk 0:00:30]}  cxb4 {[%clk 0:00:17]} 34. cxb4 {[%clk 0:00:30]}  Rc8 {[%clk 0:00:16]} 35. Re4 {[%clk 0:00:27]}  Rc3 {[%clk 0:00:16]} 36. Rd4 {[%clk 0:00:21]}  Rxd4 {[%clk 0:00:14]} 0-1


[Site "https://www.chess.com"]